[Event "Titled Tuesday Blitz August 23 Late 2022"]
[White "Paravyan, David"]
[Black "Deac, Bogdan-Daniel"]
[WhiteFideId "4194985"]
[BlackFideId "1226380"]
[WhiteElo "2569"]
[BlackElo "2648"]
[Result "1-0"]
[Round "08"]
[TimeControl "180+1"]
[Date "2022.08.23"]
[WhiteClock "0:00:05"]
[BlackClock "0:00:02"]

1. e4 {[%clk 0:03:00]}  c6 {[%clk 0:02:59]} 2. d4 {[%clk 0:03:00]}  d5 {[%clk 0:03:00]} 3. e5 {[%clk 0:03:01]}  Bf5 {[%clk 0:03:00]} 4. h4 {[%clk 0:03:02]}  h5 {[%clk 0:03:00]} 5. Bd3 {[%clk 0:03:03]}  Bxd3 {[%clk 0:03:00]} 6. Qxd3 {[%clk 0:03:04]}  e6 {[%clk 0:03:00]} 7. Nf3 {[%clk 0:03:04]}  c5 {[%clk 0:02:57]} 8. Bg5 {[%clk 0:03:02]}  Qb6 {[%clk 0:02:51]} 9. O-O {[%clk 0:02:15]}  Nc6 {[%clk 0:02:46]} 10. dxc5 {[%clk 0:02:10]}  Bxc5 {[%clk 0:02:44]} 11. Nc3 {[%clk 0:02:11]}  Nge7 {[%clk 0:02:32]} 12. Na4 {[%clk 0:02:07]}  Qa5 {[%clk 0:02:28]} 13. Nxc5 {[%clk 0:02:06]}  Qxc5 {[%clk 0:02:28]} 14. a3 {[%clk 0:01:49]}  Qc4 {[%clk 0:02:05]} 15. Qxc4 {[%clk 0:01:31]}  dxc4 {[%clk 0:02:04]} 16. Rfe1 {[%clk 0:01:27]}  Nd5 {[%clk 0:01:54]} 17. Re4 {[%clk 0:01:25]}  c3 {[%clk 0:01:48]} 18. b3 {[%clk 0:00:43]}  a5 {[%clk 0:01:38]} 19. Rc4 {[%clk 0:00:34]}  O-O {[%clk 0:01:34]} 20. Kf1 {[%clk 0:00:22]}  Rfc8 {[%clk 0:01:31]} 21. Be3 {[%clk 0:00:16]}  a4 {[%clk 0:01:00]} 22. bxa4 {[%clk 0:00:08]}  Nce7 {[%clk 0:00:59]} 23. Rxc8+ {[%clk 0:00:07]}  Nxc8 {[%clk 0:00:56]} 24. Rb1 {[%clk 0:00:08]}  b6 {[%clk 0:00:54]} 25. Rb3 {[%clk 0:00:08]}  Rxa4 {[%clk 0:00:52]} 26. Bd4 {[%clk 0:00:08]}  Nce7 {[%clk 0:00:28]} 27. Bxb6 {[%clk 0:00:04]}  Nf5 {[%clk 0:00:16]} 28. g3 {[%clk 0:00:04]}  Nxb6 {[%clk 0:00:14]} 29. Rxb6 {[%clk 0:00:05]}  Rxa3 {[%clk 0:00:14]} 30. Ng5 {[%clk 0:00:06]}  Ra8 {[%clk 0:00:09]} 31. Rc6 {[%clk 0:00:06]}  Nd4 {[%clk 0:00:05]} 32. Rxc3 {[%clk 0:00:06]}  f6 {[%clk 0:00:05]} 33. exf6 {[%clk 0:00:06]}  gxf6 {[%clk 0:00:06]} 34. Nf3 {[%clk 0:00:07]}  Nf5 {[%clk 0:00:05]} 35. Kg2 {[%clk 0:00:06]}  e5 {[%clk 0:00:04]} 36. Rc7 {[%clk 0:00:06]}  Ra2 {[%clk 0:00:03]} 37. Nd2 {[%clk 0:00:06]}  Nd4 {[%clk 0:00:03]} 38. Ne4 {[%clk 0:00:06]}  Ra6 {[%clk 0:00:02]} 39. c3 {[%clk 0:00:06]}  Nb5 {[%clk 0:00:03]} 40. Rb7 {[%clk 0:00:06]}  Na3 {[%clk 0:00:03]} 41. Rd7 {[%clk 0:00:03]}  Nc4 {[%clk 0:00:03]} 42. Rc7 {[%clk 0:00:04]}  Na3 {[%clk 0:00:03]} 43. c4 {[%clk 0:00:04]}  f5 {[%clk 0:00:03]} 44. Ng5 {[%clk 0:00:04]}  e4 {[%clk 0:00:04]} 45. c5 {[%clk 0:00:04]}  Nb5 {[%clk 0:00:04]} 46. Rc8+ {[%clk 0:00:04]}  Kg7 {[%clk 0:00:04]} 47. Nh3 {[%clk 0:00:05]}  Ra2 {[%clk 0:00:04]} 48. Kf1 {[%clk 0:00:03]}  Ra1+ {[%clk 0:00:03]} 49. Kg2 {[%clk 0:00:04]}  Ra2 {[%clk 0:00:03]} 50. Re8 {[%clk 0:00:03]}  Rc2 {[%clk 0:00:02]} 51. Nf4 {[%clk 0:00:03]}  Nd4 {[%clk 0:00:03]} 52. Nxh5+ {[%clk 0:00:03]}  Kf7 {[%clk 0:00:03]} 53. Rd8 {[%clk 0:00:04]}  Ne6 {[%clk 0:00:01]} 54. Rd7+ {[%clk 0:00:04]}  Kg6 {[%clk 0:00:02]} 55. Nf4+ {[%clk 0:00:04]}  Nxf4+ {[%clk 0:00:02]} 56. gxf4 {[%clk 0:00:05]}  Rxc5 {[%clk 0:00:03]} 57. Rd8 {[%clk 0:00:05]}  Rc3 {[%clk 0:00:02]} 58. Rg8+ {[%clk 0:00:05]}  Kf6 {[%clk 0:00:02]} 59. Rg5 {[%clk 0:00:05]}  Re3 {[%clk 0:00:02]} 60. fxe3 {[%clk 0:00:05]} 1-0


[Site "https://www.chess.com"]

[Event "Titled Tuesday Blitz August 23 Late 2022"]
[White "Pulpan, Jakub"]
[Black "Martinez Alcantara, Jose Eduardo"]
[WhiteFideId "302759"]
[BlackFideId "3805662"]
[WhiteElo "2451"]
[BlackElo "2703"]
[Result "0-1"]
[Round "08"]
[TimeControl "180+1"]
[Date "2022.08.23"]
[WhiteClock "0:00:02"]
[BlackClock "0:00:02"]

1. d4 {[%clk 0:03:00]}  Nf6 {[%clk 0:03:00]} 2. Nf3 {[%clk 0:03:00]}  e6 {[%clk 0:03:00]} 3. c4 {[%clk 0:02:55]}  Bb4+ {[%clk 0:03:01]} 4. Bd2 {[%clk 0:02:54]}  Qe7 {[%clk 0:03:01]} 5. g3 {[%clk 0:02:52]}  Bxd2+ {[%clk 0:03:02]} 6. Nbxd2 {[%clk 0:02:48]}  d6 {[%clk 0:03:02]} 7. Bg2 {[%clk 0:02:48]}  a5 {[%clk 0:03:02]} 8. O-O {[%clk 0:02:47]}  O-O {[%clk 0:03:03]} 9. Rc1 {[%clk 0:02:46]}  e5 {[%clk 0:03:03]} 10. e3 {[%clk 0:02:39]}  Nc6 {[%clk 0:03:02]} 11. c5 {[%clk 0:02:34]}  e4 {[%clk 0:03:00]} 12. cxd6 {[%clk 0:02:34]}  cxd6 {[%clk 0:03:01]} 13. Ne1 {[%clk 0:02:31]}  d5 {[%clk 0:02:57]} 14. a3 {[%clk 0:02:19]}  h5 {[%clk 0:02:57]} 15. f3 {[%clk 0:02:08]}  exf3 {[%clk 0:02:56]} 16. Qxf3 {[%clk 0:02:09]}  Re8 {[%clk 0:02:48]} 17. Rc3 {[%clk 0:02:03]}  Bg4 {[%clk 0:02:45]} 18. Qf2 {[%clk 0:01:59]}  Qd7 {[%clk 0:02:19]} 19. Nd3 {[%clk 0:01:45]}  Re7 {[%clk 0:02:02]} 20. Nf4 {[%clk 0:01:40]}  Qd6 {[%clk 0:01:49]} 21. Rc5 {[%clk 0:01:28]}  Be6 {[%clk 0:01:37]} 22. Bf3 {[%clk 0:01:26]}  Ng4 {[%clk 0:01:19]} 23. Bxg4 {[%clk 0:01:26]}  hxg4 {[%clk 0:01:16]} 24. Nh5 {[%clk 0:01:10]}  f6 {[%clk 0:01:00]} 25. Nf4 {[%clk 0:00:42]}  Rd8 {[%clk 0:00:54]} 26. Rfc1 {[%clk 0:00:41]}  Bf7 {[%clk 0:00:53]} 27. Nf1 {[%clk 0:00:41]}  Rde8 {[%clk 0:00:52]} 28. Qg2 {[%clk 0:00:38]}  Rd7 {[%clk 0:00:50]} 29. Qc2 {[%clk 0:00:34]}  g5 {[%clk 0:00:48]} 30. Ng2 {[%clk 0:00:24]}  Kg7 {[%clk 0:00:49]} 31. Qf5 {[%clk 0:00:23]}  Be6 {[%clk 0:00:48]} 32. Qf2 {[%clk 0:00:23]}  Qe7 {[%clk 0:00:41]} 33. Nd2 {[%clk 0:00:23]}  Bf7 {[%clk 0:00:40]} 34. Rf1 {[%clk 0:00:22]}  Bg6 {[%clk 0:00:39]} 35. Rc3 {[%clk 0:00:22]}  Rf8 {[%clk 0:00:38]} 36. Ne1 {[%clk 0:00:22]}  Qd6 {[%clk 0:00:37]} 37. Nd3 {[%clk 0:00:22]}  Re7 {[%clk 0:00:38]} 38. Nc5 {[%clk 0:00:22]}  Nd8 {[%clk 0:00:29]} 39. b4 {[%clk 0:00:16]}  axb4 {[%clk 0:00:28]} 40. axb4 {[%clk 0:00:17]}  b6 {[%clk 0:00:29]} 41. Na6 {[%clk 0:00:17]}  Be8 {[%clk 0:00:26]} 42. Rfc1 {[%clk 0:00:16]}  Bg6 {[%clk 0:00:25]} 43. Nc7 {[%clk 0:00:15]}  Rff7 {[%clk 0:00:22]} 44. Nb5 {[%clk 0:00:14]}  Qd7 {[%clk 0:00:23]} 45. Na3 {[%clk 0:00:14]}  Qe6 {[%clk 0:00:23]} 46. Qf1 {[%clk 0:00:12]}  Nb7 {[%clk 0:00:18]} 47. Qa6 {[%clk 0:00:12]}  Nd6 {[%clk 0:00:18]} 48. Qxb6 {[%clk 0:00:12]}  Rb7 {[%clk 0:00:18]} 49. Qa6 {[%clk 0:00:11]}  Ra7 {[%clk 0:00:18]} 50. Qe2 {[%clk 0:00:11]}  Ne4 {[%clk 0:00:14]} 51. Nxe4 {[%clk 0:00:11]}  Bxe4 {[%clk 0:00:15]} 52. Rb3 {[%clk 0:00:09]}  Bf3 {[%clk 0:00:12]} 53. Qf2 {[%clk 0:00:09]}  Rac7 {[%clk 0:00:11]} 54. Rf1 {[%clk 0:00:08]}  Qb6 {[%clk 0:00:08]} 55. Nb1 {[%clk 0:00:08]}  Qb5 {[%clk 0:00:07]} 56. Rb2 {[%clk 0:00:08]}  Be4 {[%clk 0:00:07]} 57. Nd2 {[%clk 0:00:08]}  Bd3 {[%clk 0:00:08]} 58. Re1 {[%clk 0:00:09]}  Rc3 {[%clk 0:00:08]} 59. e4 {[%clk 0:00:08]}  dxe4 {[%clk 0:00:08]} 60. Nxe4 {[%clk 0:00:09]}  Bxe4 {[%clk 0:00:05]} 61. Rxe4 {[%clk 0:00:10]}  Rf3 {[%clk 0:00:05]} 62. Qe2 {[%clk 0:00:09]}  Qf5 {[%clk 0:00:05]} 63. b5 {[%clk 0:00:08]}  Rc3 {[%clk 0:00:04]} 64. Rb1 {[%clk 0:00:07]}  Qc8 {[%clk 0:00:02]} 65. Qd2 {[%clk 0:00:03]}  Rc2 {[%clk 0:00:03]} 66. Qd3 {[%clk 0:00:04]}  Rc3 {[%clk 0:00:02]} 67. Qf1 {[%clk 0:00:03]}  Qb7 {[%clk 0:00:02]} 68. Re2 {[%clk 0:00:03]}  Rf3 {[%clk 0:00:02]} 69. Qg2 {[%clk 0:00:03]}  Qb6 {[%clk 0:00:03]} 70. Rd2 {[%clk 0:00:03]}  Rd7 {[%clk 0:00:03]} 71. Kh1 {[%clk 0:00:03]}  Rxd4 {[%clk 0:00:02]} 72. Rxd4 {[%clk 0:00:04]}  Qxd4 {[%clk 0:00:03]} 73. b6 {[%clk 0:00:05]}  Qe4 {[%clk 0:00:04]} 74. Rc1 {[%clk 0:00:04]}  Kh6 {[%clk 0:00:02]} 75. h3 {[%clk 0:00:03]}  gxh3 {[%clk 0:00:02]} 76. Qxh3+ {[%clk 0:00:04]}  Kg6 {[%clk 0:00:03]} 77. Qg2 {[%clk 0:00:05]}  g4 {[%clk 0:00:03]} 78. Rd1 {[%clk 0:00:05]}  Qc6 {[%clk 0:00:02]} 79. Rb1 {[%clk 0:00:05]}  Qe4 {[%clk 0:00:03]} 80. Rc1 {[%clk 0:00:04]}  Kg5 {[%clk 0:00:03]} 81. Qd2+ {[%clk 0:00:03]}  Kg6 {[%clk 0:00:02]} 82. Qg2 {[%clk 0:00:04]}  f5 {[%clk 0:00:02]} 83. Kh2 {[%clk 0:00:03]}  f4 {[%clk 0:00:03]} 84. Rg1 {[%clk 0:00:02]}  Kf5 {[%clk 0:00:02]} 85. Kh1 {[%clk 0:00:02]}  Qd4 {[%clk 0:00:01]} 86. gxf4 {[%clk 0:00:01]}  Qh8+ {[%clk 0:00:01]} 87. Qh2 {[%clk 0:00:02]}  Rh3 {[%clk 0:00:02]} 88. Rg2 {[%clk 0:00:02]}  Rxh2+ {[%clk 0:00:02]} 89. Rxh2 {[%clk 0:00:03]}  Qa1+ {[%clk 0:00:02]} 90. Kg2 {[%clk 0:00:04]}  Qb2+ {[%clk 0:00:02]} 91. Kg3 {[%clk 0:00:05]}  Qxb6 {[%clk 0:00:03]} 92. Rh5+ {[%clk 0:00:05]}  Kg6 {[%clk 0:00:03]} 93. Rg5+ {[%clk 0:00:05]}  Kf6 {[%clk 0:00:04]} 94. Kxg4 {[%clk 0:00:05]}  Qg1+ {[%clk 0:00:04]} 95. Kf3 {[%clk 0:00:05]}  Qe1 {[%clk 0:00:05]} 96. Re5 {[%clk 0:00:05]}  Qh1+ {[%clk 0:00:05]} 97. Kg3 {[%clk 0:00:06]}  Kf7 {[%clk 0:00:03]} 98. Kf2 {[%clk 0:00:06]}  Qh3 {[%clk 0:00:03]} 99. Rg5 {[%clk 0:00:07]}  Kf6 {[%clk 0:00:03]} 100. Re5 {[%clk 0:00:07]}  Qg4 {[%clk 0:00:03]} 101. Ke3 {[%clk 0:00:06]}  Qg3+ {[%clk 0:00:03]} 102. Ke4 {[%clk 0:00:07]}  Qc3 {[%clk 0:00:03]} 103. Rf5+ {[%clk 0:00:06]}  Kg6 {[%clk 0:00:03]} 104. Rg5+ {[%clk 0:00:06]}  Kf6 {[%clk 0:00:03]} 105. Rf5+ {[%clk 0:00:07]}  Kg6 {[%clk 0:00:04]} 106. Rg5+ {[%clk 0:00:07]}  Kh6 {[%clk 0:00:05]} 107. Kf5 {[%clk 0:00:08]}  Qf3 {[%clk 0:00:02]} 108. Ke5 {[%clk 0:00:08]}  Qe3+ {[%clk 0:00:02]} 109. Kf5 {[%clk 0:00:09]}  Qe2 {[%clk 0:00:03]} 110. Rg6+ {[%clk 0:00:07]}  Kh5 {[%clk 0:00:03]} 111. Rg5+ {[%clk 0:00:07]}  Kh4 {[%clk 0:00:04]} 112. Kg6 {[%clk 0:00:03]}  Qe6+ {[%clk 0:00:04]} 113. Kg7 {[%clk 0:00:03]}  Qd6 {[%clk 0:00:03]} 114. Rf5 {[%clk 0:00:02]}  Kg4 {[%clk 0:00:03]} 115. Rf6 {[%clk 0:00:03]}  Qd3 {[%clk 0:00:03]} 116. Rf7 {[%clk 0:00:02]}  Qd4+ {[%clk 0:00:02]} 117. Kg6 {[%clk 0:00:03]}  Qd8 {[%clk 0:00:02]} 118. f5 {[%clk 0:00:02]}  Qg5+ {[%clk 0:00:02]} 119. Kh7 {[%clk 0:00:02]}  Kf4 {[%clk 0:00:02]} 0-1


[Site "https://www.chess.com"]

[Event "Titled Tuesday Blitz August 23 Late 2022"]
[White "Romanchuk, Viktor"]
[Black "Rustemov, Alexander"]
[WhiteFideId "14109271"]
[BlackFideId "4119002"]
[WhiteElo "2242"]
[BlackElo "2743"]
[Result "0-1"]
[Round "08"]
[TimeControl "180+1"]
[Date "2022.08.23"]
[WhiteClock "0:00:16"]
[BlackClock "0:00:19"]

1. d4 {[%clk 0:03:00]}  f5 {[%clk 0:02:59]} 2. Nc3 {[%clk 0:03:00]}  Nf6 {[%clk 0:02:59]} 3. Bg5 {[%clk 0:02:59]}  d5 {[%clk 0:02:59]} 4. f3 {[%clk 0:02:59]}  g6 {[%clk 0:02:49]} 5. Qd2 {[%clk 0:02:57]}  Bg7 {[%clk 0:02:48]} 6. Bh6 {[%clk 0:02:57]}  O-O {[%clk 0:02:47]} 7. O-O-O {[%clk 0:02:56]}  Nc6 {[%clk 0:02:40]} 8. h4 {[%clk 0:02:50]}  Nh5 {[%clk 0:02:24]} 9. Nh3 {[%clk 0:02:44]}  e6 {[%clk 0:01:56]} 10. Bxg7 {[%clk 0:02:25]}  Kxg7 {[%clk 0:01:56]} 11. Nf4 {[%clk 0:02:26]}  Nxf4 {[%clk 0:01:47]} 12. Qxf4 {[%clk 0:02:27]}  Qd6 {[%clk 0:01:46]} 13. e3 {[%clk 0:02:15]}  h6 {[%clk 0:01:37]} 14. Nb5 {[%clk 0:01:47]}  Qxf4 {[%clk 0:01:35]} 15. exf4 {[%clk 0:01:48]}  Rf7 {[%clk 0:01:35]} 16. Nc3 {[%clk 0:01:40]}  a6 {[%clk 0:01:34]} 17. Na4 {[%clk 0:01:34]}  b6 {[%clk 0:01:32]} 18. b3 {[%clk 0:01:33]}  Bd7 {[%clk 0:01:30]} 19. Nb2 {[%clk 0:01:33]}  Kf6 {[%clk 0:01:24]} 20. c3 {[%clk 0:01:31]}  Rh8 {[%clk 0:01:20]} 21. Nd3 {[%clk 0:01:29]}  a5 {[%clk 0:01:12]} 22. Re1 {[%clk 0:01:21]}  Rfh7 {[%clk 0:01:11]} 23. Be2 {[%clk 0:01:03]}  g5 {[%clk 0:01:10]} 24. Rh2 {[%clk 0:01:01]}  gxf4 {[%clk 0:00:59]} 25. Nxf4 {[%clk 0:00:59]}  h5 {[%clk 0:00:54]} 26. Nh3 {[%clk 0:00:55]}  Rg7 {[%clk 0:00:51]} 27. Ng5 {[%clk 0:00:55]}  Nd8 {[%clk 0:00:46]} 28. Rhh1 {[%clk 0:00:41]}  Nf7 {[%clk 0:00:45]} 29. Nxf7 {[%clk 0:00:32]}  Kxf7 {[%clk 0:00:44]} 30. Bf1 {[%clk 0:00:29]}  Kf6 {[%clk 0:00:39]} 31. Kd2 {[%clk 0:00:29]}  f4 {[%clk 0:00:37]} 32. Ke2 {[%clk 0:00:28]}  c5 {[%clk 0:00:35]} 33. Kd2 {[%clk 0:00:27]}  a4 {[%clk 0:00:27]} 34. Re5 {[%clk 0:00:25]}  a3 {[%clk 0:00:23]} 35. Re1 {[%clk 0:00:21]}  Rc8 {[%clk 0:00:22]} 36. Rg1 {[%clk 0:00:20]}  b5 {[%clk 0:00:21]} 37. Be2 {[%clk 0:00:19]}  b4 {[%clk 0:00:21]} 38. dxc5 {[%clk 0:00:18]}  bxc3+ {[%clk 0:00:21]} 39. Kxc3 {[%clk 0:00:18]}  Rxc5+ {[%clk 0:00:21]} 40. Kd2 {[%clk 0:00:19]}  e5 {[%clk 0:00:20]} 41. Rc1 {[%clk 0:00:18]}  Rxc1 {[%clk 0:00:19]} 42. Kxc1 {[%clk 0:00:19]}  e4 {[%clk 0:00:19]} 43. Kd2 {[%clk 0:00:19]}  Ke5 {[%clk 0:00:19]} 44. Kc3 {[%clk 0:00:19]}  d4+ {[%clk 0:00:19]} 45. Kb4 {[%clk 0:00:16]}  d3 {[%clk 0:00:19]} 0-1


[Site "https://www.chess.com"]

[Event "Titled Tuesday Blitz August 23 Late 2022"]
[White "Xiong, Jeffery"]
[Black "Carlsen, Magnus"]
[WhiteFideId "2047640"]
[BlackFideId "1503014"]
[WhiteElo "2714"]
[BlackElo "2830"]
[Result "1/2-1/2"]
[Round "08"]
[TimeControl "180+1"]
[Date "2022.08.23"]
[WhiteClock "0:00:03"]
[BlackClock "0:00:20"]

1. c4 {[%clk 0:03:00]}  g6 {[%clk 0:02:57]} 2. d4 {[%clk 0:02:56]}  Bg7 {[%clk 0:02:57]} 3. e4 {[%clk 0:02:56]}  e6 {[%clk 0:02:56]} 4. h4 {[%clk 0:02:42]}  h6 {[%clk 0:02:52]} 5. Nc3 {[%clk 0:02:41]}  Ne7 {[%clk 0:02:52]} 6. Nf3 {[%clk 0:02:39]}  d5 {[%clk 0:02:46]} 7. e5 {[%clk 0:02:06]}  c5 {[%clk 0:02:45]} 8. dxc5 {[%clk 0:02:02]}  Nbc6 {[%clk 0:02:40]} 9. Bf4 {[%clk 0:02:02]}  Qa5 {[%clk 0:02:32]} 10. Qd2 {[%clk 0:02:02]}  Qxc5 {[%clk 0:02:31]} 11. Rc1 {[%clk 0:01:52]}  Qa5 {[%clk 0:02:28]} 12. cxd5 {[%clk 0:01:45]}  Nxd5 {[%clk 0:02:23]} 13. Nxd5 {[%clk 0:01:45]}  Qxd2+ {[%clk 0:02:22]} 14. Kxd2 {[%clk 0:01:44]}  exd5 {[%clk 0:02:23]} 15. Bb5 {[%clk 0:01:43]}  O-O {[%clk 0:02:07]} 16. Bxc6 {[%clk 0:01:38]}  bxc6 {[%clk 0:02:08]} 17. Rxc6 {[%clk 0:01:39]}  d4 {[%clk 0:01:45]} 18. Nxd4 {[%clk 0:01:26]}  Bb7 {[%clk 0:01:44]} 19. Rc7 {[%clk 0:01:27]}  Bxg2 {[%clk 0:01:44]} 20. Rg1 {[%clk 0:01:27]}  Bd5 {[%clk 0:01:36]} 21. Nf5 {[%clk 0:01:01]}  Kh7 {[%clk 0:01:31]} 22. Nxg7 {[%clk 0:00:45]}  Kxg7 {[%clk 0:01:32]} 23. b3 {[%clk 0:00:46]}  a5 {[%clk 0:01:31]} 24. Be3 {[%clk 0:00:35]}  a4 {[%clk 0:01:24]} 25. h5 {[%clk 0:00:35]}  g5 {[%clk 0:01:22]} 26. f4 {[%clk 0:00:36]}  axb3 {[%clk 0:01:22]} 27. axb3 {[%clk 0:00:36]}  Ra2+ {[%clk 0:01:08]} 28. Rc2 {[%clk 0:00:35]}  Rxc2+ {[%clk 0:01:05]} 29. Kxc2 {[%clk 0:00:36]}  Rc8+ {[%clk 0:01:05]} 30. Kd2 {[%clk 0:00:32]}  Bxb3 {[%clk 0:01:04]} 31. fxg5 {[%clk 0:00:33]}  hxg5 {[%clk 0:01:04]} 32. Bxg5 {[%clk 0:00:33]}  Kh7 {[%clk 0:01:01]} 33. Bf4 {[%clk 0:00:19]}  Rg8 {[%clk 0:00:58]} 34. Rb1 {[%clk 0:00:19]}  Be6 {[%clk 0:00:56]} 35. Ke3 {[%clk 0:00:20]}  Ra8 {[%clk 0:00:55]} 36. Bg5 {[%clk 0:00:15]}  Ra3+ {[%clk 0:00:55]} 37. Kf2 {[%clk 0:00:10]}  Rh3 {[%clk 0:00:53]} 38. h6 {[%clk 0:00:08]}  Kg6 {[%clk 0:00:48]} 39. Rg1 {[%clk 0:00:07]}  Kf5 {[%clk 0:00:47]} 40. Rg3 {[%clk 0:00:05]}  Rh5 {[%clk 0:00:42]} 41. Ke3 {[%clk 0:00:03]}  Kxe5 {[%clk 0:00:37]} 42. Bf4+ {[%clk 0:00:04]}  Kf6 {[%clk 0:00:37]} 43. Bg5+ {[%clk 0:00:03]}  Kf5 {[%clk 0:00:36]} 44. Bf4 {[%clk 0:00:04]}  f6 {[%clk 0:00:32]} 45. Rg7 {[%clk 0:00:04]}  Rh3+ {[%clk 0:00:30]} 46. Rg3 {[%clk 0:00:03]}  Rh4 {[%clk 0:00:30]} 47. Rf3 {[%clk 0:00:04]}  Kg6 {[%clk 0:00:29]} 48. Rf1 {[%clk 0:00:04]}  Bg4 {[%clk 0:00:25]} 49. Rg1 {[%clk 0:00:03]}  Kf5 {[%clk 0:00:22]} 50. Rg2 {[%clk 0:00:02]}  Rh3+ {[%clk 0:00:20]} 51. Rg3 {[%clk 0:00:03]}  Rh1 {[%clk 0:00:20]} 52. Bd6 {[%clk 0:00:02]}  Rxh6 {[%clk 0:00:19]} 53. Rg2 {[%clk 0:00:01]}  Rh3+ {[%clk 0:00:19]} 54. Bg3 {[%clk 0:00:02]}  Kg5 {[%clk 0:00:18]} 55. Kf2 {[%clk 0:00:02]}  f5 {[%clk 0:00:18]} 56. Rh2 {[%clk 0:00:02]}  f4 {[%clk 0:00:19]} 57. Rxh3 {[%clk 0:00:02]}  Bxh3 {[%clk 0:00:20]} 58. Bxf4+ {[%clk 0:00:03]} 1/2-1/2


[Site "https://www.chess.com"]

[Event "Titled Tuesday Blitz August 23 Late 2022"]
[White "Aldokhin, Ivan"]
[Black "Zhigalko, Sergei"]
[WhiteFideId "24115720"]
[BlackFideId "13502956"]
[WhiteElo "2246"]
[BlackElo "2662"]
[Result "0-1"]
[Round "09"]
[TimeControl "180+1"]
[Date "2022.08.23"]
[WhiteClock "0:00:02"]
[BlackClock "0:00:13"]

1. e4 {[%clk 0:03:00]}  c5 {[%clk 0:02:59]} 2. Nf3 {[%clk 0:03:01]}  Nc6 {[%clk 0:02:59]} 3. d4 {[%clk 0:02:59]}  cxd4 {[%clk 0:02:59]} 4. Nxd4 {[%clk 0:02:59]}  Nf6 {[%clk 0:02:59]} 5. Nc3 {[%clk 0:02:59]}  e5 {[%clk 0:02:59]} 6. Ndb5 {[%clk 0:02:54]}  d6 {[%clk 0:02:59]} 7. Nd5 {[%clk 0:02:55]}  Nxd5 {[%clk 0:02:59]} 8. exd5 {[%clk 0:02:55]}  Nb8 {[%clk 0:02:59]} 9. c4 {[%clk 0:02:56]}  Be7 {[%clk 0:03:00]} 10. Be2 {[%clk 0:02:54]}  O-O {[%clk 0:03:00]} 11. O-O {[%clk 0:02:55]}  Nd7 {[%clk 0:02:57]} 12. b4 {[%clk 0:02:54]}  a6 {[%clk 0:02:53]} 13. Nc3 {[%clk 0:02:53]}  f5 {[%clk 0:02:53]} 14. a4 {[%clk 0:02:39]}  Bf6 {[%clk 0:02:34]} 15. Ba3 {[%clk 0:02:29]}  e4 {[%clk 0:02:33]} 16. Rc1 {[%clk 0:02:29]}  b6 {[%clk 0:01:56]} 17. f4 {[%clk 0:01:33]}  exf3 {[%clk 0:01:43]} 18. Bxf3 {[%clk 0:01:30]}  Ne5 {[%clk 0:01:37]} 19. c5 {[%clk 0:01:07]}  Nc4 {[%clk 0:01:37]} 20. Qb3 {[%clk 0:00:40]}  Nd2 {[%clk 0:01:19]} 21. Qa2 {[%clk 0:00:40]}  Nxf1 {[%clk 0:01:19]} 22. Kxf1 {[%clk 0:00:40]}  bxc5 {[%clk 0:01:04]} 23. bxc5 {[%clk 0:00:40]}  Qa5 {[%clk 0:01:05]} 24. Qc4 {[%clk 0:00:34]}  Be5 {[%clk 0:00:43]} 25. c6 {[%clk 0:00:25]}  Qb6 {[%clk 0:00:37]} 26. Ne2 {[%clk 0:00:18]}  a5 {[%clk 0:00:35]} 27. Qb5 {[%clk 0:00:09]}  Qe3 {[%clk 0:00:30]} 28. Rb1 {[%clk 0:00:08]}  Ba6 {[%clk 0:00:26]} 29. Qb3 {[%clk 0:00:08]}  Bd3 {[%clk 0:00:26]} 30. Bc1 {[%clk 0:00:04]}  Qd4 {[%clk 0:00:18]} 31. Rb2 {[%clk 0:00:02]}  Bxh2 {[%clk 0:00:14]} 32. Ke1 {[%clk 0:00:02]}  Rfe8 {[%clk 0:00:13]} 33. Kd2 {[%clk 0:00:02]}  Bxe2+ {[%clk 0:00:13]} 0-1


[Site "https://www.chess.com"]

[Event "Titled Tuesday Blitz August 23 Late 2022"]
[White "Andreikin, Dmitry"]
[Black "Shimanov, Aleksandr"]
[WhiteFideId "4158814"]
[BlackFideId "4198603"]
[WhiteElo "2736"]
[BlackElo "2605"]
[Result "1-0"]
[Round "09"]
[TimeControl "180+1"]
[Date "2022.08.23"]
[WhiteClock "0:00:13"]
[BlackClock "0:00:02"]

1. d4 {[%clk 0:03:00]}  Nf6 {[%clk 0:02:58]} 2. Nf3 {[%clk 0:03:01]}  g6 {[%clk 0:02:59]} 3. Nbd2 {[%clk 0:03:01]}  c5 {[%clk 0:02:56]} 4. dxc5 {[%clk 0:03:00]}  Qa5 {[%clk 0:02:56]} 5. a3 {[%clk 0:02:59]}  Qxc5 {[%clk 0:02:54]} 6. b4 {[%clk 0:02:59]}  Qc7 {[%clk 0:02:54]} 7. Bb2 {[%clk 0:02:59]}  Bg7 {[%clk 0:02:54]} 8. e3 {[%clk 0:02:59]}  O-O {[%clk 0:02:54]} 9. c4 {[%clk 0:02:59]}  b6 {[%clk 0:02:54]} 10. Be2 {[%clk 0:02:59]}  Bb7 {[%clk 0:02:53]} 11. O-O {[%clk 0:02:59]}  d6 {[%clk 0:02:54]} 12. Rc1 {[%clk 0:02:59]}  Nbd7 {[%clk 0:02:54]} 13. Nb1 {[%clk 0:03:00]}  Rac8 {[%clk 0:02:53]} 14. Nc3 {[%clk 0:02:59]}  Qb8 {[%clk 0:02:41]} 15. Qb3 {[%clk 0:02:57]}  a6 {[%clk 0:02:39]} 16. Rfd1 {[%clk 0:02:53]}  Qa8 {[%clk 0:02:38]} 17. Ne1 {[%clk 0:02:50]}  Rc7 {[%clk 0:02:34]} 18. Bf1 {[%clk 0:02:30]}  Rfc8 {[%clk 0:02:32]} 19. Nb1 {[%clk 0:02:26]}  d5 {[%clk 0:02:11]} 20. cxd5 {[%clk 0:02:18]}  Bxd5 {[%clk 0:02:09]} 21. Qd3 {[%clk 0:02:18]}  Rxc1 {[%clk 0:01:59]} 22. Rxc1 {[%clk 0:02:19]}  Rxc1 {[%clk 0:01:50]} 23. Bxc1 {[%clk 0:02:20]}  b5 {[%clk 0:01:44]} 24. Bb2 {[%clk 0:02:19]}  Qc6 {[%clk 0:01:36]} 25. Qd1 {[%clk 0:02:14]}  Nb6 {[%clk 0:01:34]} 26. Nd3 {[%clk 0:02:08]}  Nc4 {[%clk 0:01:32]} 27. Bc1 {[%clk 0:02:02]}  Nd7 {[%clk 0:01:26]} 28. Nf4 {[%clk 0:01:56]}  Be4 {[%clk 0:01:20]} 29. Nd2 {[%clk 0:01:55]}  Nxd2 {[%clk 0:01:20]} 30. Qxd2 {[%clk 0:01:56]}  e5 {[%clk 0:01:14]} 31. Ne2 {[%clk 0:01:52]}  Nb6 {[%clk 0:01:11]} 32. Nc3 {[%clk 0:01:39]}  Bf5 {[%clk 0:01:11]} 33. Qd8+ {[%clk 0:01:34]}  Bf8 {[%clk 0:01:11]} 34. e4 {[%clk 0:01:33]}  Be6 {[%clk 0:01:10]} 35. Be3 {[%clk 0:01:22]}  Nd7 {[%clk 0:00:55]} 36. Nd5 {[%clk 0:01:02]}  Kg7 {[%clk 0:00:44]} 37. Nc7 {[%clk 0:00:53]}  f6 {[%clk 0:00:17]} 38. Qc8 {[%clk 0:00:33]}  Kg8 {[%clk 0:00:04]} 39. Qxa6 {[%clk 0:00:33]}  Qxa6 {[%clk 0:00:03]} 40. Nxa6 {[%clk 0:00:34]}  Bc4 {[%clk 0:00:04]} 41. Nc7 {[%clk 0:00:32]}  f5 {[%clk 0:00:03]} 42. Nxb5 {[%clk 0:00:30]}  Bb3 {[%clk 0:00:03]} 43. Nc3 {[%clk 0:00:27]}  f4 {[%clk 0:00:02]} 44. Ba7 {[%clk 0:00:27]}  Kf7 {[%clk 0:00:02]} 45. Bb5 {[%clk 0:00:24]}  Ke6 {[%clk 0:00:02]} 46. Bc6 {[%clk 0:00:23]}  Nf6 {[%clk 0:00:02]} 47. f3 {[%clk 0:00:19]}  g5 {[%clk 0:00:02]} 48. Nb5 {[%clk 0:00:18]}  g4 {[%clk 0:00:02]} 49. Kf2 {[%clk 0:00:15]}  h5 {[%clk 0:00:01]} 50. Bb8 {[%clk 0:00:13]}  h4 {[%clk 0:00:01]} 51. h3 {[%clk 0:00:14]}  g3+ {[%clk 0:00:01]} 52. Kg1 {[%clk 0:00:14]}  Bc4 {[%clk 0:00:01]} 53. Nc3 {[%clk 0:00:13]}  Bb3 {[%clk 0:00:01]} 54. Bb5 {[%clk 0:00:12]}  Be7 {[%clk 0:00:01]} 55. Bd3 {[%clk 0:00:12]}  Bf8 {[%clk 0:00:01]} 56. Kf1 {[%clk 0:00:11]}  Be7 {[%clk 0:00:01]} 57. Bb5 {[%clk 0:00:11]}  Bf8 {[%clk 0:00:01]} 58. Na4 {[%clk 0:00:12]}  Be7 {[%clk 0:00:01]} 59. Nc5+ {[%clk 0:00:12]}  Bxc5 {[%clk 0:00:01]} 60. bxc5 {[%clk 0:00:13]}  Nd7 {[%clk 0:00:02]} 61. Bxd7+ {[%clk 0:00:13]}  Kxd7 {[%clk 0:00:02]} 62. Bxe5 {[%clk 0:00:13]} 1-0


[Site "https://www.chess.com"]